bitfinex-derivatives/quotes_SOLF0:USTF0_20240906
["timestamp","ask_amount","ask_price","bid_price","bid_amount"]
[1725632497428,1.3864,129.88,129.79,3.8531]
[1725632497728,48.1518,129.84,129.74,3.79871979]
[1725632497935,1.3864,129.88,129.75,44.3]
[1725632497936,44.3,129.87,129.75,44.3]
[1725632498130,44.3,129.84,129.73,44.3]
[1725632498530,45.6168,129.87,129.75,44.3]
[1725632498826,3.8515,129.86,129.75,44.3]
[1725632499028,45.6168,129.87,129.75,48.16115183]
[1725632499337,45.6168,129.87,129.77,44.3]
[1725632499524,1.3864,129.88,129.77,44.3]
[1725632499724,44.3,129.87,129.77,44.3]
[1725632499933,3.8513,129.86,129.75,48.16115183]
[1725632500135,44.3,129.87,129.84,3.8518]
[1725632500439,45.6855,129.93,129.82,3.79833441]
[1725632500638,1.3595,129.92,129.82,3.90272646]
[1725632500937,5.30499079,129.92,129.81,44.3]
[1725632501128,1.3595,129.92,129.82,3.77905665]
[1725632501326,1.3595,129.92,129.87,3.8506]
[1725632501530,44.3,129.89,129.76,44.3]
[1725632502038,3.8503,129.9,129.79,44.3]
[1725632502234,3.92738337,129.88,129.79,44.3]
[1725632502651,44.3,129.89,129.76,44.3]
[1725632502832,44.3,129.87,129.76,44.3]
[1725632503336,44.3,129.87,129.81,3.8525]
[1725632503739,3.8515,129.86,129.81,3.8525]
[1725632504037,44.3,129.85,129.75,3.79679288]
[1725632504237,44.3,129.85,129.74,44.3]
[1725632504636,3.8513,129.86,129.74,48.07328451]
[1725632505033,44.3,129.87,129.74,48.07328451]
[1725632505438,48.11220819,129.87,129.74,48.07328451]
[1725632506636,48.11220819,129.87,129.77,44.3]
[1725632506838,48.11220819,129.87,129.75,44.3]
[1725632507345,3.8517,129.85,129.82,3.8524]
[1725632507640,48.11220819,129.87,129.82,3.8524]
[1725632507844,48.11220819,129.87,129.78,3.77280446]
[1725632507845,3.81220819,129.87,129.78,3.77280446]
[1725632508048,44.3,129.89,129.77,44.3]
[1725632508341,48.08128354,129.89,129.77,48.19960522]
[1725632508541,3.78128354,129.89,129.79,44.3]
[1725632508745,3.8505,129.89,129.85,3.8513]
[1725632509041,3.83292883,129.88,129.79,44.3]
[1725632509238,44.3,129.91,129.77,48.19960522]
[1725632509434,44.3,129.89,129.77,48.19960522]
[1725632509744,44.3,129.85,129.75,48.24624015]
[1725632509946,44.3,129.85,129.75,3.94624015]
[1725632510152,44.3,129.85,129.72,45.6448]
[1725632510153,1.3334,129.84,129.72,45.6448]
[1725632510343,44.3,129.87,129.74,44.3]
[1725632511240,44.3,129.87,129.72,12.98466461]
[1725632511241,44.3,129.87,129.76,44.3]
[1725632511635,3.8514,129.86,129.82,3.8524]
[1725632511840,3.8514,129.86,129.76,44.3]
[1725632512341,44.3,129.87,129.76,44.3]
[1725632512741,3.8516,129.85,129.76,44.3]
[1725632512935,44.3,129.85,129.74,44.3]
[1725632513142,44.3,129.83,129.72,49.57416461]
[1725632513341,7.66779985,129.82,129.78,3.8534]
[1725632513541,3.81519985,129.82,129.72,49.57416461]
[1725632513947,44.3,129.89,129.76,44.3]
[1725632514439,48.1505,129.89,129.84,3.8516]
[1725632514838,44.3,129.89,129.84,3.8516]
[1725632515741,48.1505,129.89,129.85,3.8515]
[1725632515950,44.3,129.89,129.85,3.8515]
[1725632516243,44.3,129.89,129.8,3.85836607]
[1725632516448,1.3334,129.9,129.81,44.3]
[1725632517046,44.3,129.89,129.8,3.84217873]
[1725632517241,44.3,129.89,129.77,7.7078]
[1725632517444,44.3,129.87,129.76,44.3]
[1725632517754,44.3,129.85,129.71,9.0399]
[1725632517952,44.3,129.85,129.81,3.8524]
[1725632517953,3.92653004,129.84,129.81,3.8524]
[1725632518248,44.3,129.88,129.79,3.77472425]
[1725632518450,3.8511,129.87,129.76,44.3]
[1725632518650,45.6334,129.9,129.78,44.3]
[1725632519044,44.3,129.87,129.79,3.80323599]
[1725632519245,44.3,129.85,129.73,44.3]
[1725632519548,44.3,129.89,129.71,45.629]
[1725632519549,44.3,129.83,129.71,45.629]
[1725632519854,48.23654768,129.83,129.71,45.629]
[1725632520145,3.8529,129.81,129.77,3.8539]
[1725632520355,44.3,129.8,129.72,1.3448]
[1725632520540,44.3,129.78,129.72,1.3448]
[1725632520739,44.3,129.78,129.7,1.4128]
[1725632520944,44.3,129.76,129.65,44.3]
[1725632521148,3.88911336,129.78,129.64,3.943]
[1725632521149,44.3,129.74,129.64,3.943]
[1725632521341,3.8553,129.73,129.64,7.7696717]
[1725632521543,44.3,129.74,129.64,7.7696717]
[1725632521748,44.3,129.76,129.65,44.3]
[1725632522245,48.10855591,129.78,129.67,44.3]
[1725632522445,44.3,129.78,129.68,1.3165]
[1725632522945,48.11973373,129.78,129.68,1.3165]
[1725632523146,45.6337,129.81,129.69,44.3]
[1725632523351,48.09498596,129.81,129.68,1.3165]
[1725632523551,44.3,129.76,129.68,1.3165]
[1725632523854,44.3,129.78,129.75,3.8542]
[1725632524052,3.90063788,129.79,129.72,3.77994792]
[1725632524252,2.5762,129.82,129.72,44.3]
[1725632524455,6.50807075,129.82,129.78,3.8534]
[1725632524655,44.3,129.81,129.7,44.3]
[1725632524853,44.3,129.81,129.65,1.3165]
[1725632524854,44.3,129.78,129.67,44.3]
[1725632525058,44.3,129.76,129.65,45.6165]
[1725632525252,44.3,129.74,129.65,1.3165]
[1725632525553,3.8553,129.73,129.68,3.8564]
[1725632525751,44.3,129.74,129.65,1.3165]
[1725632526154,44.3,129.79,129.67,44.3]
[1725632527256,44.3,129.79,129.73,3.8549]
[1725632527751,6.50807075,129.82,129.65,1.3165]
[1725632527752,44.3,129.76,129.65,1.3165]
[1725632527954,44.3,129.76,129.65,45.6165]
[1725632528257,44.3,129.76,129.7,3.8559]
[1725632528258,3.855,129.74,129.7,3.8559]
[1725632528561,44.3,129.76,129.65,45.6165]
[1725632528851,44.3,129.79,129.65,45.6165]
[1725632529044,44.3,129.76,129.65,45.6165]
[1725632529246,3.8551,129.73,129.69,3.856]
[1725632529451,7.64363597,129.73,129.69,3.856]
[1725632529650,3.78853597,129.73,129.64,6.4531717]
[1725632529858,44.3,129.77,129.65,44.3]
[1725632530356,3.8538,129.78,129.65,44.3]
[1725632530557,44.3,129.79,129.68,44.3]
[1725632530953,44.3,129.77,129.66,44.3]
[1725632531358,6.50807075,129.82,129.7,44.3]
[1725632531359,44.3,129.81,129.7,44.3]
[1725632531560,6.50807075,129.82,129.72,44.3]
[1725632531758,5.21957075,129.82,129.72,48.08874155]
[1725632532071,44.3,129.83,129.72,48.08874155]
[1725632532255,44.3,129.86,129.82,3.8522]
[1725632532454,1.2987,129.87,129.76,44.3]
[1725632533163,45.5987,129.87,129.76,44.3]
[1725632533965,3.8515,129.86,129.76,44.3]
[1725632534568,45.5987,129.87,129.76,44.3]
[1725632534967,44.3,129.83,129.79,3.8533]
[1725632535270,44.3,129.85,129.74,44.3]
[1725632535967,44.3,129.83,129.73,2.6736]
[1725632536358,44.3,129.85,129.74,44.3]
[1725632536566,48.1517,129.85,129.81,3.8524]
[1725632536759,44.3,129.85,129.74,44.3]
[1725632537163,44.3,129.83,129.79,3.8533]
[1725632537869,48.1522,129.83,129.79,3.8533]
[1725632538068,44.3,129.86,129.74,44.3]
[1725632538268,1.2987,129.87,129.76,44.3]
[1725632538464,44.3,129.85,129.79,3.8531]
[1725632538666,44.3,129.81,129.73,2.6736]
[1725632538865,44.3,129.79,129.71,1.2776]
[1725632539263,44.3,129.79,129.72,3.92003209]
[1725632539568,48.24238602,129.81,129.76,3.8539]
[1725632539769,44.3,129.81,129.72,3.92003209]
[1725632540069,44.3,129.81,129.73,3.8549]
[1725632540070,44.3,129.79,129.73,3.8549]
[1725632540270,44.3,129.79,129.71,1.2776]
[1725632540470,3.8541,129.77,129.71,1.2776]
[1725632540667,3.8541,129.77,129.73,3.8549]
[1725632540870,44.3,129.79,129.73,3.8549]
[1725632541070,3.8541,129.77,129.73,3.8549]
[1725632541464,44.3,129.79,129.71,3.78514815]
[1725632541661,3.84490553,129.81,129.72,44.3]
[1725632541860,44.3,129.85,129.74,44.3]
[1725632542067,3.852,129.84,129.74,44.3]
[1725632542268,46.9061,129.87,129.74,44.3]
[1725632542476,45.5987,129.87,129.84,3.8517]
[1725632542669,48.10925283,129.89,129.8,3.90855393]
[1725632542867,44.3,129.87,129.76,44.3]
[1725632543167,3.80925283,129.89,129.79,0.04878494]
[1725632543467,0.05627696,129.86,129.81,44.3]
[1725632543868,0.05627696,129.86,129.81,48.06519147]
[1725632544064,0.05627696,129.86,129.81,3.76519147]
[1725632544372,0.05627696,129.86,129.81,44.3]
[1725632544670,0.05627696,129.86,129.84,3.8517]
[1725632544969,0.05627696,129.86,129.79,44.3]
[1725632545274,3.77752373,129.89,129.79,44.3]
[1725632545575,44.3,129.88,129.81,3.8526]
[1725632545868,44.3,129.86,129.77,2.6415]
[1725632546468,3.8516,129.85,129.77,2.6415]
[1725632546664,44.3,129.86,129.77,1.3023]
[1725632546967,44.3,129.83,129.77,1.3023]
[1725632547168,44.3,129.83,129.77,3.8537]
[1725632547467,48.1523,129.83,129.77,3.8537]
[1725632547872,44.3,129.83,129.75,3.85234537]
[1725632548071,3.8526,129.82,129.72,44.3]
[1725632548272,44.3,129.81,129.72,3.85118967]
[1725632548474,48.22091712,129.81,129.72,3.85118967]
[1725632548677,48.22091712,129.81,129.76,3.8541]
[1725632548972,3.84926349,129.88,129.83,3.8519]
[1725632549174,44.3,129.9,129.82,3.79382219]
[1725632549371,3.90367075,129.9,129.81,44.3]
[1725632549573,44.3,129.9,129.82,3.90713965]
[1725632549773,44.3,129.9,129.8,1.2945]
[1725632550377,49.55834312,129.92,129.8,5.23864127]
[1725632550565,44.3,129.9,129.81,2.6293]
[1725632550767,337.0,130.04,129.81,2.6293]
[1725632550978,44.3,129.98,129.86,44.3]
[1725632551475,1.3095,130.0,129.86,44.3]
[1725632551476,44.3,129.96,129.86,44.3]
[1725632551675,3.76722728,129.95,129.83,44.3]
[1725632551874,44.3,129.98,129.87,44.3]
[1725632552072,44.3,129.96,129.88,3.77262335]
[1725632552373,44.3,129.93,129.86,3.8512]
[1725632552574,44.3,129.91,129.81,50.71078832]
[1725632553478,3.8502,129.9,129.85,3.8513]
[1725632553772,44.3,129.89,129.81,1.326]
[1725632554373,3.8503,129.9,129.85,3.8514]
[1725632554774,3.8503,129.9,129.81,1.326]
[1725632555372,1.2782,129.92,129.84,44.3]
[1725632555674,44.3,129.97,129.86,44.3]
[1725632556077,44.3,129.97,129.92,3.8492]
[1725632556478,44.3,129.97,129.88,44.3]
[1725632556782,3.85370949,129.99,129.88,48.23115357]
[1725632556976,1.3833,130.0,129.89,2.6877]
[1725632557371,1.3833,130.0,129.9,44.3]
[1725632557780,44.3,129.99,129.94,3.8487]
[1725632557979,44.3,129.99,129.89,2.6877]
[1725632558174,44.3,129.97,129.89,1.3611]
[1725632558374,3.8484,129.96,129.92,3.8494]
[1725632558778,44.3,129.97,129.91,3.8496]
[1725632558983,44.3,129.97,129.86,45.6168]
[1725632559181,44.3,129.97,129.86,49.43425099]
[1725632559378,44.3,129.99,129.88,44.3]
[1725632560181,44.3,129.97,129.88,44.3]
[1725632560377,44.3,129.97,129.91,3.8495]
[1725632560581,44.3,129.97,129.86,49.43425099]
[1725632561076,3.8486,129.95,129.9,3.85]
[1725632561273,3.76161779,129.94,129.9,3.85]
[1725632561479,44.3,129.95,129.83,46.9768]
[1725632561678,69.49730639,130.09,129.9,44.3]
[1725632561879,45.6581,130.03,129.92,44.3]
[1725632562083,49.57399116,130.03,129.92,44.3]
[1725632563780,3.8467,130.02,129.92,44.3]
[1725632563977,5.27399116,130.03,129.92,44.3]
[1725632564180,5.27399116,130.03,129.95,44.3]
[1725632564480,9.12039116,130.03,129.95,44.3]
[1725632564682,5.27399116,130.03,129.95,44.3]
[1725632564876,3.8468,130.01,129.97,3.8478]
[1725632565076,5.27399116,130.03,129.93,44.3]
[1725632565285,45.6789,130.05,129.95,44.3]
[1725632565286,1.3789,130.05,129.95,44.3]
[1725632565482,7.71036802,130.05,130.01,3.8467]
[1725632565787,3.8458,130.05,130.01,3.8467]
[1725632566275,7.72537829,130.05,130.01,3.8467]
[1725632566473,45.7078,130.07,130.01,3.8467]
[1725632566678,45.7078,130.07,130.0,3.8469]
[1725632566881,45.7078,130.07,129.95,44.3]
[1725632567083,3.8463,130.03,129.95,44.3]
[1725632567283,3.84416944,130.03,129.95,44.3]
[1725632567485,44.3,130.05,129.95,44.3]
[1725632567787,44.3,130.03,129.95,3.8484]
[1725632567982,44.3,130.03,129.91,48.4389]
[1725632568289,3.8476,129.99,129.91,48.4389]
[1725632568486,1.4078,130.07,129.95,44.3]
[1725632568487,45.7078,130.07,129.95,44.3]
[1725632568691,3.92205064,130.06,129.97,44.3]
[1725632568894,45.7078,130.07,129.95,44.3]
[1725632569095,44.3,130.05,129.93,44.3]
[1725632569390,48.13389304,130.05,129.95,44.3]
[1725632569685,3.8467,130.02,129.95,44.3]
[1725632569878,3.8467,130.02,129.98,3.8474]
[1725632570078,3.8467,130.02,129.95,44.3]
[1725632570284,48.13389304,130.05,129.95,44.3]
[1725632570479,48.13389304,130.05,129.99,3.8472]
[1725632570885,3.8463,130.03,129.97,3.85814601]
[1725632571094,3.8463,130.03,129.95,44.3]
[1725632571298,1.4078,130.07,129.99,44.3]
[1725632571480,3.78488772,130.06,129.99,48.16183979]
[1725632571685,1.4078,130.07,129.99,48.16183979]
[1725632571884,3.8444,130.09,130.02,44.3]
[1725632572089,2.6572,130.11,130.02,44.3]
[1725632572285,1.3273,130.11,130.02,48.17376736]
[1725632572485,1.3273,130.11,130.06,3.8451]
[1725632572697,45.6273,130.11,130.02,48.17376736]
[1725632572896,45.6273,130.11,130.02,3.87376736]
[1725632573193,45.6273,130.11,130.01,1.3086]
[1725632573487,45.6273,130.11,130.01,5.20275966]
[1725632573691,3.8447,130.08,130.04,3.8458]
[1725632573988,44.3,130.09,130.0,6.69424065]
[1725632574191,3.8458,130.05,130.02,3.8464]
[1725632574387,7.66223807,130.05,130.0,6.69424065]
[1725632574986,7.66223807,130.05,130.0,5.30044065]
[1725632575291,3.81643807,130.05,129.95,44.3]
[1725632575488,44.3,130.07,129.95,44.3]
[1725632576183,3.8463,130.03,130.0,3.8471]
[1725632576386,44.3,130.07,130.0,3.8471]
[1725632576787,44.3,130.07,129.99,3.8472]
[1725632577291,44.3,130.04,129.93,44.3]
[1725632577595,44.3,130.08,129.97,44.3]
[1725632577895,44.3,130.08,129.97,48.07382411]
[1725632578484,3.8455,130.06,130.02,3.8463]
[1725632578782,7.72995472,130.06,130.02,3.8463]
[1725632579489,3.88445472,130.06,129.97,48.07382411]
[1725632579789,44.3,130.08,129.97,48.07382411]
[1725632580383,2.6845,130.11,129.97,3.77382411]
[1725632580587,44.3,130.08,129.97,44.3]
[1725632580788,44.3,130.08,129.98,3.86521522]
[1725632581189,44.3,130.08,129.97,44.3]
[1725632581389,3.8445,130.09,130.01,44.3]
[1725632581592,1.4025,130.11,130.03,44.3]
[1725632581790,97.97374179,130.21,130.05,44.3]
[1725632581791,44.3,130.17,130.05,44.3]
[1725632581991,47.0641,130.19,130.07,44.3]
[1725632582195,44.3,130.14,130.06,1.4087]
[1725632582494,1.3188,130.13,130.04,1.4027]
[1725632582692,44.3,130.12,130.04,1.4027]
[1725632582889,44.3,130.1,130.0,6.60117811]
[1725632583091,44.3,130.08,129.97,44.3]
[1725632583698,3.846,130.04,129.97,44.3]
[1725632583897,3.79662991,130.05,130.01,3.8465]
[1725632584097,3.8457,130.05,130.01,3.8465]
[1725632584296,7.7816346,130.05,130.01,3.8465]
[1725632584501,44.3,130.08,130.0,3.847]
[1725632584700,3.8462,130.03,130.0,3.847]
[1725632584996,44.3,130.08,129.97,44.3]
[1725632584997,3.912538,130.05,129.97,44.3]
[1725632585207,3.8458,130.05,129.97,44.3]
[1725632585395,7.66907565,130.05,129.97,44.3]
[1725632585697,7.66907565,130.05,130.02,3.8465]
[1725632585698,3.8458,130.05,130.02,3.8465]
[1725632585894,7.76988055,130.05,130.02,3.8465]
[1725632586090,7.76988055,130.05,129.97,44.3]
[1725632586390,7.76988055,130.05,129.81,25.4649802]
[1725632586391,44.3,130.03,129.91,44.3]
[1725632586598,44.3,130.03,129.91,47.0151]
[1725632586795,1.3681,130.02,129.91,47.0151]
[1725632587000,3.89137667,130.01,129.91,50.9022444]
[1725632587191,5.2147,130.02,129.91,50.9022444]
[1725632587502,44.3,130.08,129.95,44.3]
[1725632587801,3.8454,130.06,129.98,44.3]
[1725632587999,1.4141,130.09,130.02,44.3]
[1725632588195,3.8443,130.1,130.02,44.3]
[1725632588496,3.8443,130.1,130.07,3.845]
[1725632588893,3.8439,130.11,130.07,3.845]
[1725632589093,47.0456,130.14,130.02,44.3]
[1725632589301,44.3,130.12,130.0,44.3]
[1725632589498,0.73223439,130.13,130.02,44.3]
[1725632589705,47.0456,130.14,130.02,44.3]
[1725632589900,3.8434,130.13,130.04,44.3]
[1725632590104,1.3036,130.17,130.06,44.3]
[1725632590400,7.6510246,130.19,130.08,44.3]
[1725632590608,44.3,130.21,130.08,44.3]
[1725632590793,48.18065969,130.21,130.08,44.3]
[1725632590990,0.7328247,130.2,130.08,44.3]
[1725632591195,0.7328247,130.2,130.07,4.0872]
[1725632591196,44.3,130.16,130.07,4.0872]
[1725632591597,3.8431,130.14,130.09,3.8444]
[1725632591792,3.85298462,130.13,130.07,2.6992]
[1725632592099,44.3,130.14,130.07,2.6992]
[1725632592298,48.05765939,130.14,130.07,2.6992]
[1725632593102,44.3,130.11,130.0,44.3]
[1725632593305,44.3,130.09,129.99,3.9802]
[1725632593602,44.3,130.07,129.95,44.3]
[1725632594393,44.3,130.07,129.95,48.19206516]
[1725632595398,3.8459,130.04,130.0,3.8469]
[1725632595706,3.8459,130.04,129.95,48.19206516]
[1725632595707,44.3,130.07,129.95,48.19206516]
[1725632596397,44.3,130.04,129.95,3.89206516]
[1725632596603,3.78354604,130.03,129.95,44.3]
[1725632596798,44.3,130.07,129.95,48.15281357]
[1725632596998,3.8467,130.02,129.98,3.8475]
[1725632597303,44.3,130.05,129.98,3.8475]
[1725632597496,26.4290498,130.2,129.95,44.3]
[1725632597702,10.4607,130.18,130.0,44.3]
[1725632597900,44.3,130.13,130.01,1.3432]
[1725632598107,44.3,130.11,130.01,2.7572]
[1725632598306,44.3,130.08,130.01,1.3432]
[1725632598606,3.8462,130.03,129.96,2.8202]
[1725632599001,3.8462,130.03,129.99,3.8472]
[1725632599302,48.17773753,130.04,129.96,1.414]
[1725632599504,44.3,130.04,129.95,3.8484]
[1725632599710,44.3,130.02,129.93,1.3432]
[1725632600004,44.3,130.02,129.95,3.8483]
[1725632600198,48.0903855,130.02,129.93,1.3432]
[1725632600399,3.7903855,130.02,129.93,1.3432]
[1725632600805,1.3175,130.03,129.93,1.3432]
[1725632601009,3.8471,130.0,129.96,3.8482]
[1725632601510,5.07180073,130.03,129.94,3.8486]
[1725632601511,3.8477,129.98,129.94,3.8486]
[1725632601717,44.3,130.02,129.93,1.3432]
[1725632602309,1.4093,130.08,130.0,44.3]
[1725632602509,3.91174039,130.08,130.0,44.3]
[1725632602808,3.8443,130.1,130.05,3.8454]
[1725632603013,44.3,130.09,130.01,1.4164]
[1725632603403,44.3,130.09,129.99,3.77778195]
[1725632603711,44.3,130.07,129.97,1.3759]
[1725632604103,3.8474,130.0,129.95,3.8484]
[1725632604308,3.93670423,130.0,129.91,1.3759]
[1725632604508,44.3,130.0,129.91,1.3759]
[1725632605311,1.3887,130.08,129.98,44.3]
[1725632605614,1.3887,130.08,129.99,2.7472]
[1725632605806,3.8452,130.07,130.02,3.8462]
[1725632606007,1.3887,130.08,130.02,3.8462]
[1725632606212,45.6887,130.08,129.99,2.7472]
[1725632606614,3.8458,130.05,130.01,3.8466]
[1725632606814,45.6887,130.08,130.01,3.8466]
[1725632607120,3.8462,130.03,130.0,3.847]
[1725632607419,3.7778679,130.02,129.94,1.3225]
[1725632607613,45.6887,130.08,129.94,1.3225]
[1725632607811,45.6887,130.08,129.94,5.1653974]
[1725632608006,45.6887,130.08,129.96,44.3]
[1725632608205,45.6887,130.08,129.96,48.10980547]
[1725632608812,7.6835,130.19,130.0,44.3]
[1725632609018,44.3,130.15,130.03,44.3]
[1725632609213,0.73487705,130.14,130.03,3.84097345]
[1725632609518,44.3,130.08,129.98,44.3]
[1725632609711,3.93640136,130.07,129.97,1.2982]
[1725632610013,44.3,130.06,129.97,1.2982]
[1725632610213,44.3,130.04,129.97,1.2982]
[1725632610415,3.8464,130.03,129.99,3.8471]
[1725632610812,3.8463,130.03,129.99,3.8471]
[1725632611119,3.8463,130.03,129.97,1.2982]
[1725632611420,48.1461,130.04,129.97,1.2982]
[1725632611617,44.3,130.04,129.97,1.2982]
[1725632612006,44.3,130.02,129.97,1.2982]
[1725632612211,44.3,130.04,129.97,1.2982]
[1725632612410,3.8464,130.03,129.97,1.2982]
[1725632613013,3.8464,130.03,129.94,3.9387101]
[1725632613219,44.3,130.0,129.89,4.0249]
[1725632613609,3.8475,129.99,129.89,4.0249]
[1725632613810,7.64242402,129.99,129.95,3.8484]
[1725632614214,7.64242402,129.99,129.92,3.8072427]
[1725632614419,7.64242402,129.99,129.89,4.0249]
[1725632614612,3.8477,129.98,129.89,4.0249]
[1725632614813,44.3,129.98,129.9,3.81609675]
[1725632615024,44.3,129.96,129.89,4.0249]
[1725632615320,3.8487,129.95,129.91,3.8495]
[1725632615725,44.3,129.96,129.89,1.3427]
[1725632615923,44.3,129.94,129.85,1.3325]
[1725632616219,44.3,129.94,129.85,2.652]
[1725632616817,3.8498,129.91,129.87,3.8508]
[1725632617519,7.62191543,129.91,129.87,3.8508]
[1725632618324,44.3,129.89,129.79,2.7541]
[1725632618521,44.3,129.89,129.81,1.3155]
[1725632618826,3.87995618,129.9,129.86,3.8509]
[1725632619118,3.87995618,129.9,129.81,1.3155]
[1725632619314,44.3,129.94,129.82,44.3]
[1725632619714,3.8499,129.91,129.87,3.8507]
[1725632619920,3.89133957,129.9,129.81,1.3155]
[1725632620124,44.3,129.9,129.81,1.3155]
[1725632620323,3.8504,129.89,129.81,1.3155]
[1725632620623,3.7992756,129.9,129.81,1.3155]
[1725632620924,3.8499,129.91,129.87,3.8507]
[1725632621129,7.70503031,129.91,129.87,3.8507]
[1725632621629,3.8507,129.88,129.84,3.8515]
[1725632621822,44.3,129.9,129.81,1.3155]
[1725632622027,45.6244,129.9,129.81,1.3155]
[1725632622224,3.85513031,129.91,129.81,1.3155]
[1725632622420,44.3,129.92,129.81,1.3155]
[1725632622620,3.87284973,129.91,129.81,1.3155]
[1725632622815,44.3,129.92,129.81,1.3155]
[1725632623125,44.3,129.92,129.82,44.3]
[1725632623321,44.3,129.9,129.83,3.82324905]
[1725632623522,44.3,129.88,129.81,1.3155]
[1725632623718,48.1508,129.88,129.84,3.8515]
[1725632623918,44.3,129.88,129.81,1.3155]
[1725632624120,44.3,129.88,129.82,3.77048005]
[1725632624319,48.1509,129.88,129.84,3.8516]
[1725632624521,44.3,129.88,129.81,1.3155]
[1725632624825,44.3,129.88,129.81,3.77856873]
[1725632625125,44.3,129.88,129.79,2.7541]
[1725632625317,48.1508,129.88,129.84,3.8516]
[1725632625723,44.3,129.88,129.79,1.3471]
[1725632625918,44.3,129.88,129.83,3.8519]
[1725632626118,44.3,129.88,129.8,3.93109811]
[1725632626119,44.3,129.88,129.79,1.3471]
[1725632626330,44.3,129.88,129.81,3.8525]
[1725632626531,44.3,129.86,129.79,1.3471]
[1725632626828,3.84312809,129.85,129.79,1.3471]
[1725632627029,1.3889,129.87,129.79,1.3471]
[1725632627423,1.3889,129.87,129.84,3.8516]
[1725632627727,1.3889,129.87,129.79,2.7367]
[1725632627923,48.1509,129.88,129.79,2.7367]
[1725632628118,44.3,129.88,129.79,2.7367]
[1725632628524,48.1508,129.88,129.84,3.8515]
[1725632629124,3.851,129.87,129.83,3.8518]
[1725632629327,44.3,129.88,129.79,2.7367]
[1725632629826,44.3,129.88,129.79,1.3471]
[1725632630129,44.3,129.88,129.78,3.77800339]
[1725632630130,44.3,129.84,129.78,3.77800339]
[1725632630536,44.3,129.88,129.78,3.82001032]
[1725632630827,3.8514,129.86,129.83,3.8519]
[1725632631329,44.3,129.84,129.77,1.3249]
[1725632631527,44.3,129.82,129.71,47.1032]
[1725632631731,44.3,129.82,129.72,1.3297]
[1725632631923,37.03,129.8,129.72,1.3297]
[1725632632625,37.03,129.82,129.72,38.3597]
[1725632633025,40.8826,129.82,129.78,3.8533]
[1725632633222,1.3455,129.83,129.77,3.78417922]
[1725632633424,3.911385,129.85,129.74,37.03]
[1725632633731,3.87013949,129.85,129.74,37.03]
[1725632633936,37.03,129.85,129.74,37.03]
[1725632634127,44.75790705,129.85,129.81,3.8524]
[1725632634434,40.90630705,129.85,129.79,3.88170366]
[1725632634624,37.03,129.87,129.76,37.03]
[1725632635130,40.881,129.87,129.83,3.8519]
[1725632635328,37.03,129.87,129.8,3.81501699]
[1725632635525,37.03,129.87,129.76,37.03]
[1725632635729,40.8811,129.87,129.76,37.03]
[1725632635929,37.03,129.87,129.76,37.03]
[1725632636125,37.03,129.85,129.76,37.03]
[1725632636631,40.87976783,129.85,129.76,37.03]
[1725632636834,44.73146783,129.85,129.81,3.8526]
[1725632637029,44.70179791,129.85,129.78,3.81701533]